[Event "Early-Titled-Tuesday-Blitz-January-23-2024"]
[Site "Chess.com"]
[Date "2024.01.23"]
[Round "6"]
[White "LevonAronian"]
[Black "Byniolus"]
[Result "1-0"]
[WhiteElo "3112"]
[BlackElo "2856"]
[TimeControl "180+1"]
[EndTime "9:05:33 PST"]
[Termination "LevonAronian won by resignation"]

1. e4 {[%clk 0:02:54.6]} 1... d5 {[%clk 0:02:58.9]} 2. exd5 {[%clk 0:02:54.8]}
2... Nf6 {[%clk 0:02:59.3]} 3. Nf3 {[%clk 0:02:51.8]} 3... Nxd5 {[%clk
0:02:59.5]} 4. d4 {[%clk 0:02:51.9]} 4... Bg4 {[%clk 0:02:59.7]} 5. c4 {[%clk
0:02:50.2]} 5... Nb6 {[%clk 0:02:59.6]} 6. c5 {[%clk 0:02:50.4]} 6... N6d7
{[%clk 0:02:59.7]} 7. h3 {[%clk 0:02:31.8]} 7... Bxf3 {[%clk 0:02:58]} 8. Qxf3
{[%clk 0:02:27.4]} 8... Nc6 {[%clk 0:02:57.4]} 9. Be3 {[%clk 0:02:27.4]} 9... e5
{[%clk 0:02:42]} 10. Bc4 {[%clk 0:01:57.5]} 10... Qf6 {[%clk 0:02:38.1]} 11.
Qxf6 {[%clk 0:01:35.5]} 11... Nxf6 {[%clk 0:02:39]} 12. d5 {[%clk 0:01:06]}
12... Nb4 {[%clk 0:02:17.1]} 13. Nc3 {[%clk 0:01:05.4]} 13... Nc2+ {[%clk
0:02:15.3]} 14. Ke2 {[%clk 0:01:05.5]} 14... Nxa1 {[%clk 0:02:16]} 15. Rxa1
{[%clk 0:01:05.1]} 15... a6 {[%clk 0:01:59.6]} 16. b4 {[%clk 0:01:03.5]} 16...
Be7 {[%clk 0:01:55.6]} 17. a4 {[%clk 0:01:02.2]} 17... O-O {[%clk 0:01:53.9]}
18. Rd1 {[%clk 0:00:59.8]} 18... Rfd8 {[%clk 0:01:47.6]} 19. a5 {[%clk
0:01:00.1]} 19... g6 {[%clk 0:01:22.3]} 20. Kd3 {[%clk 0:00:59.5]} 20... Kg7
{[%clk 0:01:20.2]} 21. Kc2 {[%clk 0:00:59.8]} 21... h6 {[%clk 0:01:12.8]} 22.
Kb3 {[%clk 0:00:57.7]} 22... Ne8 {[%clk 0:01:09]} 23. Bc1 {[%clk 0:00:57.1]}
23... f5 {[%clk 0:00:57.5]} 24. g4 {[%clk 0:00:56.1]} 24... fxg4 {[%clk
0:00:54.8]} 25. hxg4 {[%clk 0:00:55.6]} 25... Bg5 {[%clk 0:00:49.2]} 26. Bxg5
{[%clk 0:00:55]} 26... hxg5 {[%clk 0:00:50.1]} 27. Ne4 {[%clk 0:00:55.5]} 27...
Nf6 {[%clk 0:00:26.1]} 28. Nxg5 {[%clk 0:00:54.9]} 28... Nxg4 {[%clk 0:00:26.9]}
29. Ne6+ {[%clk 0:00:54.3]} 29... Kf6 {[%clk 0:00:27]} 30. Nxc7 {[%clk
0:00:52.2]} 30... Rac8 {[%clk 0:00:25.3]} 31. d6 {[%clk 0:00:51.4]} 31... e4
{[%clk 0:00:09.7]} 32. Be6 {[%clk 0:00:51]} 32... Nxf2 {[%clk 0:00:09.5]} 33.
Rf1 {[%clk 0:00:50.8]} 33... e3 {[%clk 0:00:09.8]} 34. Bxc8 {[%clk 0:00:51.2]}
34... Rxc8 {[%clk 0:00:10.7]} 35. Nd5+ {[%clk 0:00:51.8]} 35... Ke5 {[%clk
0:00:10.3]} 36. Nxe3 {[%clk 0:00:52.4]} 36... Ne4 {[%clk 0:00:10.5]} 37. Nc4+
{[%clk 0:00:52.4]} 37... Kd4 {[%clk 0:00:09.9]} 38. Rd1+ {[%clk 0:00:52.2]} 1-0

[Event "Early-Titled-Tuesday-Blitz-January-23-2024"]
[Site "Chess.com"]
[Date "2024.01.23"]
[Round "6"]
[White "GoValya"]
[Black "Ceejay271"]
[Result "1-0"]
[WhiteElo "2314"]
[BlackElo "2493"]
[TimeControl "180+1"]
[EndTime "9:05:33 PST"]
[Termination "GoValya won on time"]

1. d4 {[%clk 0:03:00.9]} 1... d5 {[%clk 0:02:57]} 2. g3 {[%clk 0:02:59.7]} 2...
Nf6 {[%clk 0:02:53.8]} 3. Bg2 {[%clk 0:03:00.1]} 3... c5 {[%clk 0:02:54]} 4. Nf3
{[%clk 0:03:00]} 4... cxd4 {[%clk 0:02:54.3]} 5. Nxd4 {[%clk 0:03:00.4]} 5... e5
{[%clk 0:02:54.4]} 6. Nf3 {[%clk 0:03:00.6]} 6... Nc6 {[%clk 0:02:54.2]} 7. O-O
{[%clk 0:03:00.5]} 7... Be7 {[%clk 0:02:53.6]} 8. c4 {[%clk 0:03:00.8]} 8... d4
{[%clk 0:02:46.9]} 9. Nbd2 {[%clk 0:02:54.8]} 9... Bg4 {[%clk 0:02:43.5]} 10. h3
{[%clk 0:02:48.6]} 10... Bh5 {[%clk 0:02:43.4]} 11. Qb3 {[%clk 0:02:44.7]} 11...
Qc7 {[%clk 0:02:28.5]} 12. Re1 {[%clk 0:02:40.4]} 12... O-O {[%clk 0:02:26.7]}
13. Ng5 {[%clk 0:02:40.4]} 13... h6 {[%clk 0:02:21.5]} 14. Nge4 {[%clk 0:02:40]}
14... Nxe4 {[%clk 0:02:21.5]} 15. Nxe4 {[%clk 0:02:40.4]} 15... f5 {[%clk
0:02:19.5]} 16. c5+ {[%clk 0:02:38.4]} 16... Kh8 {[%clk 0:02:15.9]} 17. Nd6
{[%clk 0:02:32.8]} 17... Bxd6 {[%clk 0:02:15.8]} 18. cxd6 {[%clk 0:02:33.3]}
18... Qxd6 {[%clk 0:02:15.8]} 19. Qxb7 {[%clk 0:02:31.7]} 19... Rac8 {[%clk
0:01:44.5]} 20. Bd2 {[%clk 0:02:31.4]} 20... Rc7 {[%clk 0:01:42.7]} 21. Qa6
{[%clk 0:02:25.7]} 21... Rb8 {[%clk 0:01:36.9]} 22. Rac1 {[%clk 0:02:13.8]}
22... Rb6 {[%clk 0:01:36.3]} 23. Qa3 {[%clk 0:02:02.6]} 23... Qxa3 {[%clk
0:01:24]} 24. bxa3 {[%clk 0:02:03.5]} 24... e4 {[%clk 0:01:24.1]} 25. Ba5 {[%clk
0:01:57.6]} 25... Nxa5 {[%clk 0:01:04.2]} 26. Rxc7 {[%clk 0:01:58.5]} 26... Rb2
{[%clk 0:01:03.5]} 27. Rxa7 {[%clk 0:01:54.3]} 27... Nc4 {[%clk 0:01:03]} 28. g4
{[%clk 0:01:50.7]} 28... Bg6 {[%clk 0:00:50.1]} 29. Rc1 {[%clk 0:01:43.5]} 29...
Ne5 {[%clk 0:00:29.5]} 30. Rc8+ {[%clk 0:01:34.8]} 30... Kh7 {[%clk 0:00:28.6]}
31. Raa8 {[%clk 0:01:35.3]} 31... Bf7 {[%clk 0:00:23.4]} 32. gxf5 {[%clk
0:01:35.1]} 32... g5 {[%clk 0:00:20.1]} 33. f6 {[%clk 0:01:30.1]} 33... Kg6
{[%clk 0:00:15.3]} 34. Bxe4+ {[%clk 0:01:28.1]} 34... Kxf6 {[%clk 0:00:15.2]}
35. Ra6+ {[%clk 0:01:28]} 35... Kg7 {[%clk 0:00:14.9]} 36. Ra5 {[%clk
0:01:11.4]} 36... Nd7 {[%clk 0:00:10.9]} 37. Rc7 {[%clk 0:01:08.7]} 37... Nf6
{[%clk 0:00:10.8]} 38. Bd3 {[%clk 0:01:05.7]} 38... Kg8 {[%clk 0:00:02.6]} 39.
Raa7 {[%clk 0:01:05.4]} 39... Bd5 {[%clk 0:00:01.1]} 40. Rc8+ {[%clk 0:01:03.5]}
1-0

[Event "Early-Titled-Tuesday-Blitz-January-23-2024"]
[Site "Chess.com"]
[Date "2024.01.23"]
[Round "6"]
[White "RantomOpening"]
[Black "GMJustin"]
[Result "1-0"]
[WhiteElo "2521"]
[BlackElo "2338"]
[TimeControl "180+1"]
[EndTime "9:05:34 PST"]
[Termination "RantomOpening won by resignation"]

1. e4 {[%clk 0:02:58.9]} 1... e6 {[%clk 0:02:36.1]} 2. Qe2 {[%clk 0:02:56.7]}
2... d5 {[%clk 0:02:27.7]} 3. d3 {[%clk 0:02:56.7]} 3... c5 {[%clk 0:02:25.4]}
4. Nf3 {[%clk 0:02:56.8]} 4... Nf6 {[%clk 0:02:19.2]} 5. g3 {[%clk 0:02:56.7]}
5... Nc6 {[%clk 0:02:16.5]} 6. Bg2 {[%clk 0:02:56.9]} 6... Be7 {[%clk
0:02:12.2]} 7. O-O {[%clk 0:02:57]} 7... b6 {[%clk 0:02:09]} 8. e5 {[%clk
0:02:57.3]} 8... Nd7 {[%clk 0:02:07.7]} 9. c4 {[%clk 0:02:57.7]} 9... Bb7 {[%clk
0:02:00]} 10. Nc3 {[%clk 0:02:53.3]} 10... d4 {[%clk 0:01:48.5]} 11. Ne4 {[%clk
0:02:52.5]} 11... Ndxe5 {[%clk 0:01:38.4]} 12. Nxe5 {[%clk 0:02:51]} 12... Nxe5
{[%clk 0:01:37.7]} 13. Nxc5 {[%clk 0:02:17.1]} 13... Bxg2 {[%clk 0:01:31.4]} 14.
Kxg2 {[%clk 0:02:18]} 14... bxc5 {[%clk 0:01:17.7]} 15. Qxe5 {[%clk 0:02:17.5]}
15... O-O {[%clk 0:01:18.3]} 16. b3 {[%clk 0:02:13.2]} 16... a5 {[%clk 0:01:15]}
17. Bd2 {[%clk 0:02:04.7]} 17... a4 {[%clk 0:01:13.8]} 18. Qe4 {[%clk
0:01:59.2]} 18... Qb6 {[%clk 0:01:08.4]} 19. Rfb1 {[%clk 0:01:27.1]} 19... axb3
{[%clk 0:01:03.3]} 20. Rxb3 {[%clk 0:01:28]} 20... Qa6 {[%clk 0:01:02.6]} 21.
Qb7 {[%clk 0:01:24.2]} 21... Bd6 {[%clk 0:00:42.9]} 22. Qxa6 {[%clk 0:01:22.1]}
22... Rxa6 {[%clk 0:00:42.3]} 23. a4 {[%clk 0:01:22.6]} 23... f5 {[%clk
0:00:36.5]} 24. a5 {[%clk 0:01:22.3]} 24... Rfa8 {[%clk 0:00:28.2]} 25. Rb5
{[%clk 0:01:12.5]} 25... e5 {[%clk 0:00:22.9]} 26. Rab1 {[%clk 0:01:10.8]} 26...
R8a7 {[%clk 0:00:14.9]} 27. Rb7 {[%clk 0:01:01.2]} 27... Rxb7 {[%clk 0:00:13.4]}
28. Rxb7 {[%clk 0:01:02.1]} 28... e4 {[%clk 0:00:12.8]} 29. dxe4 {[%clk
0:01:01.3]} 29... fxe4 {[%clk 0:00:12.2]} 30. Rb6 {[%clk 0:00:59.8]} 30... Rxb6
{[%clk 0:00:09.5]} 31. axb6 {[%clk 0:01:00.7]} 31... Kf7 {[%clk 0:00:08.9]} 32.
Bf4 {[%clk 0:01:01.2]} 32... Ke6 {[%clk 0:00:03.9]} 33. b7 {[%clk 0:01:00.1]}
1-0

[Event "Early-Titled-Tuesday-Blitz-January-23-2024"]
[Site "Chess.com"]
[Date "2024.01.23"]
[Round "6"]
[White "AnaKuchava"]
[Black "KorolDimitriy75"]
[Result "0-1"]
[WhiteElo "2222"]
[BlackElo "2361"]
[TimeControl "180+1"]
[EndTime "9:05:34 PST"]
[Termination "KorolDimitriy75 won on time"]

1. d4 {[%clk 0:03:00.9]} 1... Nf6 {[%clk 0:02:59.2]} 2. Nf3 {[%clk 0:02:59.5]}
2... g6 {[%clk 0:02:59.1]} 3. c4 {[%clk 0:02:54.1]} 3... c5 {[%clk 0:02:59.3]}
4. d5 {[%clk 0:02:53.7]} 4... b5 {[%clk 0:02:59.2]} 5. cxb5 {[%clk 0:02:54.6]}
5... a6 {[%clk 0:02:59.5]} 6. b6 {[%clk 0:02:54.2]} 6... d6 {[%clk 0:02:59.5]}
7. Nc3 {[%clk 0:02:54]} 7... Nbd7 {[%clk 0:03:00]} 8. e4 {[%clk 0:02:51.4]} 8...
Bg7 {[%clk 0:03:00.3]} 9. Bd3 {[%clk 0:02:49]} 9... O-O {[%clk 0:03:00.1]} 10.
O-O {[%clk 0:02:43.7]} 10... Nxb6 {[%clk 0:03:00.7]} 11. h3 {[%clk 0:02:40.7]}
11... e6 {[%clk 0:03:00.8]} 12. dxe6 {[%clk 0:02:18.1]} 12... Bxe6 {[%clk
0:03:01.7]} 13. e5 {[%clk 0:02:15.9]} 13... dxe5 {[%clk 0:02:59.5]} 14. Nxe5
{[%clk 0:02:16.8]} 14... Nfd5 {[%clk 0:02:32.8]} 15. Nxd5 {[%clk 0:01:47.1]}
15... Qxd5 {[%clk 0:02:31.3]} 16. Nf3 {[%clk 0:01:43]} 16... Rfd8 {[%clk
0:02:13.1]} 17. Be2 {[%clk 0:01:39.8]} 17... Qf5 {[%clk 0:01:47.5]} 18. Qe1
{[%clk 0:01:33.1]} 18... Nc4 {[%clk 0:01:36.3]} 19. Ng5 {[%clk 0:00:38]} 19...
Nxb2 {[%clk 0:01:26.8]} 20. Bg4 {[%clk 0:00:31.2]} 20... Qe5 {[%clk 0:00:45]}
21. Nxe6 {[%clk 0:00:18.3]} 21... fxe6 {[%clk 0:00:43.2]} 22. Bxe6+ {[%clk
0:00:14.9]} 22... Kh8 {[%clk 0:00:42.8]} 23. Qxe5 {[%clk 0:00:04.7]} 23... Bxe5
{[%clk 0:00:43.7]} 24. Bxb2 {[%clk 0:00:02]} 24... Bxb2 {[%clk 0:00:43.3]} 25.
Rad1 {[%clk 0:00:02.7]} 25... Bd4 {[%clk 0:00:42.5]} 26. Bc4 {[%clk 0:00:01.8]}
26... a5 {[%clk 0:00:41]} 27. Rfe1 {[%clk 0:00:01.8]} 27... Rf8 {[%clk
0:00:39.6]} 28. Re2 {[%clk 0:00:02.2]} 28... Rab8 {[%clk 0:00:39.4]} 29. Rde1
{[%clk 0:00:01.8]} 29... Rb4 {[%clk 0:00:38.9]} 0-1

[Event "Early-Titled-Tuesday-Blitz-January-23-2024"]
[Site "Chess.com"]
[Date "2024.01.23"]
[Round "6"]
[White "Durarbayli"]
[Black "djano"]
[Result "0-1"]
[WhiteElo "2874"]
[BlackElo "2688"]
[TimeControl "180+1"]
[EndTime "9:05:35 PST"]
[Termination "djano won on time"]

1. e4 {[%clk 0:03:00.1]} 1... c5 {[%clk 0:03:00.2]} 2. Nf3 {[%clk 0:03:00]} 2...
Nc6 {[%clk 0:03:00.4]} 3. d4 {[%clk 0:02:59.3]} 3... cxd4 {[%clk 0:03:01.3]} 4.
Nxd4 {[%clk 0:02:59.8]} 4... g6 {[%clk 0:03:01.8]} 5. c4 {[%clk 0:02:59.4]} 5...
e5 {[%clk 0:03:00]} 6. Nb5 {[%clk 0:02:43.9]} 6... d6 {[%clk 0:03:00]} 7. Be3
{[%clk 0:02:39.7]} 7... Be7 {[%clk 0:02:53.3]} 8. Be2 {[%clk 0:02:32.3]} 8...
Nf6 {[%clk 0:02:53.1]} 9. N1c3 {[%clk 0:02:29.8]} 9... a6 {[%clk 0:02:52.9]} 10.
Na3 {[%clk 0:02:29.1]} 10... O-O {[%clk 0:02:51.4]} 11. O-O {[%clk 0:02:29.2]}
11... Be6 {[%clk 0:02:43.4]} 12. f3 {[%clk 0:02:17.1]} 12... Nh5 {[%clk
0:02:42.4]} 13. Nd5 {[%clk 0:02:15.4]} 13... Bxd5 {[%clk 0:02:37]} 14. cxd5
{[%clk 0:02:15.1]} 14... Nd4 {[%clk 0:02:37.7]} 15. Rc1 {[%clk 0:01:42.2]} 15...
Bg5 {[%clk 0:02:24.1]} 16. Nc2 {[%clk 0:00:16.5]} 16... Bxe3+ {[%clk 0:02:07.9]}
17. Nxe3 {[%clk 0:00:17.4]} 17... Qg5 {[%clk 0:02:08.1]} 18. Rc3 {[%clk
0:00:11.9]} 18... Rac8 {[%clk 0:02:00.5]} 19. Ng4 {[%clk 0:00:03.7]} 19... Nf4
{[%clk 0:01:55.9]} 20. Bc4 {[%clk 0:00:02.5]} 20... h5 {[%clk 0:01:43.9]} 21. g3
{[%clk 0:00:02.7]} 21... Nh3+ {[%clk 0:01:23.8]} 22. Kg2 {[%clk 0:00:03.4]}
22... hxg4 {[%clk 0:01:24.6]} 23. f4 {[%clk 0:00:04.2]} 23... Qh5 {[%clk
0:01:15.9]} 24. fxe5 {[%clk 0:00:04.7]} 24... dxe5 {[%clk 0:01:15.2]} 25. d6
{[%clk 0:00:05.6]} 25... Kg7 {[%clk 0:01:06]} 26. Bd5 {[%clk 0:00:02.5]} 26...
Rxc3 {[%clk 0:00:59.8]} 27. bxc3 {[%clk 0:00:03.4]} 27... Nf3 {[%clk 0:01:00.4]}
28. d7 {[%clk 0:00:03.3]} 28... Nf4+ {[%clk 0:00:55.1]} 29. Kf2 {[%clk
0:00:03.6]} 29... Qxh2+ {[%clk 0:00:56]} 30. Ke3 {[%clk 0:00:04]} 30... Ng2+
{[%clk 0:00:51.3]} 31. Kd3 {[%clk 0:00:03.8]} 31... Qxg3 {[%clk 0:00:39.1]} 0-1

[Event "Early-Titled-Tuesday-Blitz-January-23-2024"]
[Site "Chess.com"]
[Date "2024.01.23"]
[Round "6"]
[White "stasOR4ik"]
[Black "SpongeBob_03"]
[Result "1/2-1/2"]
[WhiteElo "2413"]
[BlackElo "2218"]
[TimeControl "180+1"]
[EndTime "9:05:36 PST"]
[Termination "Game drawn by repetition"]

1. e4 {[%clk 0:03:00.9]} 1... c5 {[%clk 0:02:57.3]} 2. c3 {[%clk 0:03:00.8]}
2... d5 {[%clk 0:02:55.5]} 3. exd5 {[%clk 0:03:00.9]} 3... Qxd5 {[%clk
0:02:56.4]} 4. Nf3 {[%clk 0:03:01.2]} 4... Nf6 {[%clk 0:02:55.4]} 5. d4 {[%clk
0:03:00.3]} 5... e6 {[%clk 0:02:56]} 6. Be3 {[%clk 0:02:54.4]} 6... cxd4 {[%clk
0:02:54.8]} 7. cxd4 {[%clk 0:02:54.8]} 7... Nc6 {[%clk 0:02:54.7]} 8. Nc3 {[%clk
0:02:55.1]} 8... Qd6 {[%clk 0:02:54.7]} 9. Bc4 {[%clk 0:02:52.9]} 9... Be7
{[%clk 0:02:54.7]} 10. O-O {[%clk 0:02:51.7]} 10... O-O {[%clk 0:02:54.1]} 11.
d5 {[%clk 0:02:48.1]} 11... exd5 {[%clk 0:02:45.4]} 12. Nxd5 {[%clk 0:02:49]}
12... Nxd5 {[%clk 0:02:43.2]} 13. Qxd5 {[%clk 0:02:46.9]} 13... Qxd5 {[%clk
0:02:41.9]} 14. Bxd5 {[%clk 0:02:47.8]} 14... Nb4 {[%clk 0:02:36.5]} 15. Bb3
{[%clk 0:02:42.6]} 15... Bf5 {[%clk 0:02:33.7]} 16. Rac1 {[%clk 0:02:37.6]}
16... Rac8 {[%clk 0:02:33.2]} 17. Bxa7 {[%clk 0:02:34.9]} 17... Nd3 {[%clk
0:02:12.7]} 18. Rxc8 {[%clk 0:02:29.4]} 18... Rxc8 {[%clk 0:02:13.6]} 19. Bd4
{[%clk 0:02:28]} 19... Bc5 {[%clk 0:02:10.8]} 20. Bc3 {[%clk 0:02:12.9]} 20...
b5 {[%clk 0:02:03]} 21. a3 {[%clk 0:02:08]} 21... Bxa3 {[%clk 0:01:59]} 22. Ne5
{[%clk 0:01:54.2]} 22... Nxe5 {[%clk 0:01:52.6]} 23. Bxe5 {[%clk 0:01:53.4]}
23... Bc5 {[%clk 0:01:52.8]} 24. Ra1 {[%clk 0:01:40.5]} 24... Re8 {[%clk
0:01:50.1]} 25. Bc3 {[%clk 0:01:32.5]} 25... Bg6 {[%clk 0:01:42.1]} 26. h3
{[%clk 0:01:23]} 26... h6 {[%clk 0:01:34.1]} 27. Ra5 {[%clk 0:01:19.1]} 27...
Re2 {[%clk 0:01:33.5]} 28. Rxb5 {[%clk 0:01:08.8]} 28... Bxf2+ {[%clk 0:01:29]}
29. Kf1 {[%clk 0:00:49.3]} 29... Bd3 {[%clk 0:01:27.4]} 30. Rb8+ {[%clk
0:00:48.7]} 30... Kh7 {[%clk 0:01:26.9]} 31. Rd8 {[%clk 0:00:49]} 31... Ba6
{[%clk 0:00:53.5]} 32. Rd6 {[%clk 0:00:48.5]} 32... Bb5 {[%clk 0:00:50.2]} 33.
Rd5 {[%clk 0:00:35.7]} 33... Ba6 {[%clk 0:00:43.2]} 34. Ra5 {[%clk 0:00:24.9]}
34... Bd3 {[%clk 0:00:41.6]} 35. Rd5 {[%clk 0:00:22]} 35... Ba6 {[%clk
0:00:41.2]} 36. Rd6 {[%clk 0:00:19.6]} 36... Bb5 {[%clk 0:00:40.5]} 37. Rd5
{[%clk 0:00:18.8]} 37... Ba6 {[%clk 0:00:40.3]} 1/2-1/2

[Event "Early-Titled-Tuesday-Blitz-January-23-2024"]
[Site "Chess.com"]
[Date "2024.01.23"]
[Round "6"]
[White "Barmen_EV"]
[Black "norwaytoadog"]
[Result "0-1"]
[WhiteElo "2485"]
[BlackElo "2292"]
[TimeControl "180+1"]
[EndTime "9:05:38 PST"]
[Termination "norwaytoadog won by checkmate"]

1. e4 {[%clk 0:03:00.9]} 1... c5 {[%clk 0:02:58.3]} 2. c3 {[%clk 0:03:00.7]}
2... d5 {[%clk 0:02:57.9]} 3. exd5 {[%clk 0:03:01.6]} 3... Qxd5 {[%clk
0:02:58.3]} 4. d4 {[%clk 0:03:02.5]} 4... Nc6 {[%clk 0:02:58.4]} 5. Nf3 {[%clk
0:03:03.1]} 5... Bg4 {[%clk 0:02:58.3]} 6. Be2 {[%clk 0:02:58.5]} 6... cxd4
{[%clk 0:02:58.6]} 7. cxd4 {[%clk 0:02:58.4]} 7... e6 {[%clk 0:02:59.1]} 8. O-O
{[%clk 0:02:58.4]} 8... Nf6 {[%clk 0:02:52.4]} 9. Nc3 {[%clk 0:02:58.3]} 9...
Qa5 {[%clk 0:02:52.2]} 10. h3 {[%clk 0:02:57.6]} 10... Bxf3 {[%clk 0:02:50.2]}
11. Bxf3 {[%clk 0:02:58.2]} 11... Bd6 {[%clk 0:02:46.1]} 12. Be3 {[%clk
0:02:57]} 12... O-O {[%clk 0:02:45.3]} 13. a3 {[%clk 0:02:56.4]} 13... Rfd8
{[%clk 0:02:23.1]} 14. Qb3 {[%clk 0:02:54.9]} 14... Qc7 {[%clk 0:02:05.8]} 15.
Nb5 {[%clk 0:02:50.1]} 15... Qe7 {[%clk 0:02:05.7]} 16. Nxd6 {[%clk 0:02:46.1]}
16... Rxd6 {[%clk 0:02:05.7]} 17. Rfd1 {[%clk 0:02:32.5]} 17... Nd5 {[%clk
0:02:01.3]} 18. Rac1 {[%clk 0:02:29]} 18... Rad8 {[%clk 0:01:59.6]} 19. Rd2
{[%clk 0:02:24.4]} 19... R6d7 {[%clk 0:01:44.4]} 20. Qa4 {[%clk 0:02:18.3]}
20... Qh4 {[%clk 0:01:40.9]} 21. Rcd1 {[%clk 0:02:11.5]} 21... Ne5 {[%clk
0:01:28.7]} 22. Bxd5 {[%clk 0:02:01.6]} 22... Rxd5 {[%clk 0:01:18.1]} 23. Qxa7
{[%clk 0:01:50.4]} 23... Nf3+ {[%clk 0:00:40.2]} 24. gxf3 {[%clk 0:01:49.5]}
24... Qxh3 {[%clk 0:00:39.8]} 25. Qxb7 {[%clk 0:01:23.6]} 25... Rh5 {[%clk
0:00:35.1]} 26. f4 {[%clk 0:01:24]} 26... Rh4 {[%clk 0:00:34.5]} 27. Qg2 {[%clk
0:00:39.5]} 27... Rg4 {[%clk 0:00:34.4]} 28. Qxg4 {[%clk 0:00:40.1]} 28... Qxg4+
{[%clk 0:00:34.6]} 29. Kf1 {[%clk 0:00:41]} 29... Rd5 {[%clk 0:00:26]} 30. b4
{[%clk 0:00:39.7]} 30... Rh5 {[%clk 0:00:25.7]} 31. f3 {[%clk 0:00:26.2]} 31...
Qxf3+ {[%clk 0:00:24.3]} 32. Rf2 {[%clk 0:00:22.8]} 32... Rh1# {[%clk
0:00:22.9]} 0-1

[Event "Early-Titled-Tuesday-Blitz-January-23-2024"]
[Site "Chess.com"]
[Date "2024.01.23"]
[Round "6"]
[White "dianamirza"]
[Black "Ducke13"]
[Result "0-1"]
[WhiteElo "1983"]
[BlackElo "2293"]
[TimeControl "180+1"]
[EndTime "9:05:40 PST"]
[Termination "Ducke13 won by checkmate"]

1. d4 {[%clk 0:02:40.5]} 1... Nf6 {[%clk 0:02:59.8]} 2. Nf3 {[%clk 0:02:40.6]}
2... g6 {[%clk 0:03:00.3]} 3. c4 {[%clk 0:02:40.6]} 3... Bg7 {[%clk 0:03:00.7]}
4. Nc3 {[%clk 0:02:41.5]} 4... d5 {[%clk 0:03:01.2]} 5. cxd5 {[%clk 0:02:41.6]}
5... Nxd5 {[%clk 0:03:02.1]} 6. Nxd5 {[%clk 0:02:42.4]} 6... Qxd5 {[%clk
0:03:01.7]} 7. e3 {[%clk 0:02:40.9]} 7... c5 {[%clk 0:02:56.8]} 8. dxc5 {[%clk
0:02:36.6]} 8... Qxc5 {[%clk 0:02:42.7]} 9. Bd3 {[%clk 0:02:22.3]} 9... O-O
{[%clk 0:02:34.1]} 10. O-O {[%clk 0:02:16.3]} 10... Nc6 {[%clk 0:02:34.7]} 11.
Rb1 {[%clk 0:02:00.9]} 11... Rd8 {[%clk 0:02:31.7]} 12. Qe2 {[%clk 0:01:57.4]}
12... Bg4 {[%clk 0:02:26.9]} 13. h3 {[%clk 0:01:54.1]} 13... Bxf3 {[%clk
0:02:25.2]} 14. gxf3 {[%clk 0:01:55]} 14... Qh5 {[%clk 0:02:20.6]} 15. Kh2
{[%clk 0:01:49.2]} 15... Rxd3 {[%clk 0:01:07.8]} 16. Qxd3 {[%clk 0:01:45.8]}
16... Ne5 {[%clk 0:01:08]} 17. Qe4 {[%clk 0:01:22.4]} 17... Nxf3+ {[%clk
0:01:03.7]} 18. Kg2 {[%clk 0:01:08.5]} 18... Nh4+ {[%clk 0:01:03.3]} 19. Kh2
{[%clk 0:01:05.5]} 19... Be5+ {[%clk 0:00:39.4]} 20. f4 {[%clk 0:01:01.1]} 20...
Qe2+ {[%clk 0:00:39.1]} 21. Kg1 {[%clk 0:00:46.9]} 21... Rc8 {[%clk 0:00:32.8]}
22. fxe5 {[%clk 0:00:08.4]} 22... Rc2 {[%clk 0:00:31.6]} 23. Qh1 {[%clk
0:00:02.8]} 23... Nf3+ {[%clk 0:00:21]} 24. Rxf3 {[%clk 0:00:02.1]} 24... Qe1+
{[%clk 0:00:21.6]} 25. Rf1 {[%clk 0:00:02.4]} 25... Qg3+ {[%clk 0:00:22.3]} 26.
Qg2 {[%clk 0:00:01.7]} 26... Qxg2# {[%clk 0:00:23.2]} 0-1